bitfinex-derivatives/quotes_ETHF0:USTF0_20210110
["timestamp","ask_amount","ask_price","bid_price","bid_amount"]
[1610267333563,4.00959,1327.3,1327.1,55.0445]
[1610267338766,4.00959,1327.3,1326.5,1.6893]
[1610267339566,4.00959,1327.3,1326.1,32.0773]
[1610267339766,5.95309,1327.3,1326.1,2.0773]
[1610267339966,5.95309,1327.3,1325.0,30.0]
[1610267340167,1.9435,1327.3,1326.3,4.00959]
[1610267342167,4.00959,1326.4,1326.3,4.00959]
[1610267350084,4.00959,1326.4,1326.1,4.00959]
[1610267352085,4.00959,1326.2,1326.1,4.00959]
[1610267354087,4.00959,1326.2,1325.9,62.35169]
[1610267356090,4.00959,1326.0,1325.9,62.35169]
[1610267357492,4.00959,1326.0,1325.9,58.3421]
[1610267360893,4.00959,1326.0,1324.9,30.0]
[1610267361092,4.00959,1326.0,1324.3,30.0]
[1610267362198,4.00959,1324.9,1324.8,4.00959]
[1610267363005,4.00959,1324.9,1324.2,30.0]
[1610267363400,4.00959,1324.9,1322.2,30.0]
[1610267364200,1.717,1325.3,1323.7,4.00959]
[1610267364599,1.717,1325.3,1323.7,5.92289]
[1610267366098,4.00959,1323.8,1323.7,5.92289]
[1610267366299,4.00959,1323.8,1323.7,1.9133]
[1610267369701,4.00959,1323.8,1323.4,4.00959]
[1610267370304,4.00959,1323.8,1323.1,62.5943]
[1610267372305,4.00959,1323.8,1323.5,4.00959]
[1610267372507,4.00959,1323.8,1323.5,6.28179]
[1610267374207,4.00959,1323.6,1323.5,6.28179]
[1610267377110,63.2401,1324.5,1323.5,6.28179]
[1610267378312,63.2401,1324.5,1324.3,4.00959]
[1610267379714,2.0088,1324.6,1324.3,4.00959]
[1610267379912,1.5745,1324.9,1324.3,4.00959]
[1610267380111,1.717,1325.3,1324.3,4.00959]
[1610267380312,4.00959,1324.9,1324.7,4.00959]
[1610267381815,4.00959,1324.9,1323.8,1.6822]
[1610267382218,4.00959,1324.7,1324.4,4.00959]
[1610267384117,56.7005,1325.7,1324.4,4.00959]
[1610267384317,4.00959,1324.7,1324.4,4.00959]
[1610267385517,2.2844,1325.3,1324.4,4.00959]
[1610267386317,4.00959,1325.1,1324.9,4.00959]
[1610267386817,56.7005,1325.7,1324.9,4.00959]
[1610267388219,4.00959,1325.1,1324.9,4.00959]
[1610267388820,56.7005,1325.7,1324.9,4.00959]
[1610267389022,6.021,1327.4,1324.9,5.91829]
[1610267390220,4.00959,1325.1,1324.9,5.91829]
[1610267390820,4.00959,1325.1,1324.9,1.9087]
[1610267394424,4.00959,1325.1,1324.7,4.00959]
[1610267395224,2.4493,1326.0,1324.7,4.00959]
[1610267395525,5.5735,1327.3,1324.7,34.00959]
[1610267396328,5.5735,1327.3,1325.2,4.00959]
[1610267396726,30.0,1327.2,1324.6,1.5226]
[1610267396929,30.0,1327.2,1324.3,1.6379]
[1610267397127,30.0,1327.2,1323.8,1.6822]
[1610267397328,30.0,1327.2,1323.2,30.0]
[1610267397927,10.971,1327.3,1323.4,30.0]
[1610267398126,25.0,1324.7,1323.4,30.0]
[1610267398329,4.00959,1324.8,1324.5,4.00959]
[1610267398527,4.00959,1324.8,1324.5,5.57919]
[1610267398728,4.00959,1324.8,1324.7,42.9508]
[1610267400428,62.8225,1326.9,1324.7,42.9508]
[1610267402035,62.8225,1326.9,1324.7,72.9508]
[1610267402428,62.8225,1326.9,1325.3,4.00959]
[1610267404331,62.8225,1326.9,1325.6,4.00959]
[1610267406432,62.8225,1326.9,1325.8,4.00959]
[1610267407935,30.3975,1327.3,1325.8,4.00959]
[1610267408337,4.00959,1325.9,1325.8,4.00959]
[1610267411844,4.00959,1325.9,1325.2,30.0]
[1610267412545,4.00959,1325.7,1325.6,4.00959]
[1610267415248,4.00959,1325.7,1325.6,34.00959]
[1610267415447,2.2297,1326.3,1325.6,34.00959]
[1610267415646,26.9925,1327.3,1325.6,34.00959]
[1610267416248,26.9925,1327.3,1325.6,4.00959]
[1610267416450,4.00959,1326.0,1325.6,4.00959]
[1610267417350,4.00959,1326.0,1325.9,49.7581]
[1610267425960,3.95359,1326.0,1325.9,49.7581]
[1610267426561,3.95359,1326.0,1325.9,53.76769]
[1610267426762,3.95359,1326.0,1325.9,4.00959]
[1610267429370,3.95359,1326.0,1325.8,59.854]
[1610267435982,3.95359,1326.0,1325.1,49.7013]
[1610267436182,3.95359,1326.0,1324.8,1.8733]
[1610267436383,3.95359,1326.0,1324.1,30.0]
[1610267436582,4.00959,1324.8,1324.7,4.00959]
[1610267437883,1.5635,1325.5,1324.7,4.00959]
[1610267438082,1.5635,1325.5,1324.7,34.00959]
[1610267438483,1.5635,1325.5,1325.1,4.00959]
[1610267438683,2.3892,1326.1,1325.1,4.00959]
[1610267438884,1.6955,1326.5,1325.1,4.00959]
[1610267439083,5.8803,1327.1,1325.1,4.00959]
[1610267439883,30.0,1329.8,1325.1,34.00959]
[1610267440083,35.6455,1329.8,1325.1,34.00959]
[1610267440583,4.00959,1325.7,1325.5,4.00959]
[1610267445484,4.00959,1325.7,1325.5,58.66869]
[1610267446785,4.00959,1325.7,1325.5,54.6591]
[1610267454896,4.00959,1325.7,1325.4,2.3945]
[1610267455297,4.00959,1325.7,1325.2,48.7843]
[1610267456799,4.00959,1325.3,1325.2,48.7843]
[1610267458704,4.00959,1325.3,1325.1,61.7985]
[1610267459703,4.00959,1325.3,1325.1,91.7985]
[1610267460604,4.00959,1325.3,1325.1,61.7985]
[1610267460904,4.00959,1325.3,1325.1,91.7985]
[1610267463511,4.00959,1325.3,1325.1,61.7985]
[1610267473631,4.00959,1325.3,1325.1,1.7435]
[1610267474033,4.00959,1325.3,1324.8,2.0969]
[1610267474232,4.00959,1325.3,1325.1,1.5134]
[1610267475837,4.00959,1325.3,1324.5,1.5696]
[1610267476234,4.00959,1325.3,1323.3,30.0]
[1610267476936,2.1332,1325.7,1324.3,4.00959]
[1610267477135,2.1332,1325.7,1324.4,30.0]
[1610267478137,2.1332,1325.7,1324.3,6.09869]
[1610267479141,4.00959,1324.4,1324.3,6.09869]
[1610267479341,4.00959,1324.4,1324.3,36.09869]
[1610267479743,2.1332,1325.7,1324.3,36.09869]
[1610267481144,4.00959,1324.7,1324.3,36.09869]
[1610267481744,4.00959,1324.7,1324.3,32.0891]
[1610267482649,4.00959,1324.7,1324.3,2.0891]
[1610267482849,4.00959,1324.7,1323.3,30.0]
[1610267483049,4.00959,1324.1,1323.9,4.00959]
[1610267485351,2.2648,1325.3,1323.9,4.00959]
[1610267485751,2.2648,1325.3,1323.9,5.70649]
[1610267485952,2.2648,1325.3,1323.9,35.70649]
[1610267486555,1.594,1325.7,1323.9,35.70649]
[1610267486954,1.594,1325.7,1324.2,4.00959]
[1610267487152,4.00959,1324.5,1324.2,4.00959]
[1610267489056,4.00959,1324.5,1324.4,4.00959]
[1610267489259,4.00959,1324.5,1324.3,2.0856]
[1610267492461,4.00959,1324.5,1324.3,32.0856]
[1610267493461,4.00959,1324.5,1324.3,2.0856]
[1610267494362,4.00959,1324.5,1324.0,30.0]
[1610267495161,2.0994,1325.4,1324.2,4.00959]
[1610267495362,1.594,1325.7,1324.3,30.0]
[1610267495561,1.5668,1326.0,1324.3,30.0]
[1610267496063,2.99709091,1329.3,1324.3,30.0]
[1610267496261,4.03971234,1329.3,1324.2,2.1136]
[1610267496462,38.4483,1327.2,1324.2,2.1136]
[1610267497262,4.00959,1324.3,1324.2,2.1136]
[1610267498062,4.00959,1324.3,1323.9,1.6969]
[1610267498262,4.00959,1324.3,1323.5,30.0]
[1610267498662,4.00959,1324.3,1323.5,31.5107]
[1610267499162,2.501,1324.8,1323.6,4.00959]
[1610267500465,2.501,1324.8,1323.5,1.5107]
[1610267501264,4.00959,1323.6,1323.5,1.5107]
[1610267503869,4.00959,1323.6,1323.3,4.00959]
[1610267504268,61.3204,1324.5,1323.3,5.56829]
[1610267504468,61.3204,1324.5,1323.3,35.56829]
[1610267505268,61.3204,1324.5,1324.4,4.00959]
[1610267507869,61.3204,1324.5,1324.4,34.00959]
[1610267508869,61.3204,1324.5,1324.4,4.00959]
[1610267511271,4.00959,1324.6,1324.5,42.1532]
[1610267511670,4.00959,1324.6,1324.5,72.1532]
[1610267511874,62.2334,1326.2,1324.5,72.1532]
[1610267513371,62.2334,1326.2,1324.9,4.00959]
[1610267513873,62.2334,1326.2,1324.9,34.00959]
[1610267515379,62.2334,1326.2,1325.3,34.00959]
[1610267515582,62.2334,1326.2,1325.3,36.25359]
[1610267517384,62.2334,1326.2,1325.6,4.00959]
[1610267517583,62.2334,1326.2,1325.6,5.96479]
[1610267518786,2.4913,1327.2,1325.7,49.591]
[1610267518984,25.0,1327.3,1325.7,49.591]
[1610267519487,4.00959,1326.0,1325.9,4.00959]
[1610267519987,4.00959,1326.0,1325.9,34.00959]
[1610267521590,4.00959,1326.0,1325.9,4.00959]
[1610267522291,4.00959,1326.0,1325.9,34.00959]
[1610267523393,4.00959,1326.0,1325.9,4.00959]
[1610267525393,4.00959,1326.0,1325.9,6.40879]
[1610267525593,1.9117,1327.1,1325.9,36.40879]
[1610267525995,25.0,1327.3,1325.9,36.40879]
[1610267527398,4.00959,1326.3,1326.1,34.00959]
[1610267528499,4.00959,1326.3,1326.1,4.00959]
[1610267528699,4.00959,1326.3,1326.1,34.00959]
[1610267529100,1.8552,1327.2,1326.1,34.00959]
[1610267529299,4.00959,1327.0,1326.8,4.00959]
[1610267529899,4.00959,1327.0,1326.2,30.0]
[1610267530700,4.00959,1327.0,1326.0,30.0]
[1610267531301,1.8552,1327.2,1326.4,4.00959]
[1610267531504,1.8552,1327.2,1326.4,34.00959]
[1610267532602,1.8552,1327.2,1326.4,4.00959]
[1610267532802,25.0,1327.3,1326.4,4.00959]
[1610267533502,26.6774,1327.3,1326.4,34.00959]
[1610267534603,26.6774,1327.3,1326.4,4.00959]
[1610267534803,26.6774,1327.3,1326.4,34.00959]
[1610267535404,26.6774,1327.3,1326.9,4.00959]
[1610267535809,26.6774,1327.3,1326.5,1.8642]
[1610267537406,4.00959,1327.0,1326.8,4.00959]
[1610267537808,4.00959,1327.0,1326.5,1.8642]
[1610267539308,4.00959,1326.8,1326.7,4.00959]
[1610267539908,4.00959,1326.8,1326.6,51.4666]
[1610267540611,4.00959,1326.8,1326.6,81.4666]
[1610267540811,26.6774,1327.3,1326.6,81.4666]
[1610267541412,26.6774,1327.3,1327.2,4.00959]
[1610267541612,26.6774,1327.3,1326.6,51.4666]
[1610267543314,26.6774,1327.3,1326.8,4.00959]
[1610267543514,26.6774,1327.3,1326.6,51.4666]
[1610267545520,4.00959,1326.7,1326.6,51.4666]
[1610267547718,26.6774,1327.3,1326.6,51.4666]
[1610267548620,26.6774,1327.3,1326.6,7.4792]
[1610267548821,26.6774,1327.3,1326.5,1.8642]
[1610267549022,26.6774,1327.3,1326.3,34.00959]
[1610267549222,26.6774,1327.3,1326.3,4.00959]
[1610267549428,26.6774,1327.3,1326.2,2.2257]
[1610267549623,26.6774,1327.3,1326.0,30.0]
[1610267551523,4.00959,1326.9,1326.7,4.00959]
[1610267553724,5.49869,1326.9,1326.7,4.00959]
[1610267554525,5.49869,1326.9,1326.1,30.0]
[1610267555226,5.49869,1326.9,1326.0,30.0]
[1610267555426,5.49869,1326.9,1326.6,4.00959]
[1610267555627,1.4891,1326.9,1326.6,6.42229]
[1610267557526,1.4891,1326.9,1326.8,4.00959]
[1610267559131,29.00959,1327.3,1326.8,4.00959]
[1610267559532,29.00959,1327.3,1327.1,4.00959]
[1610267559733,29.00959,1327.3,1327.1,6.10359]
[1610267560331,29.00959,1327.3,1327.1,2.094]
[1610267564542,30.50009,1327.3,1327.1,2.094]
[1610267564742,29.00959,1327.3,1326.9,4.00959]
[1610267565542,29.00959,1327.3,1327.2,4.00959]
[1610267565743,29.00959,1327.3,1327.2,6.17989]
[1610267568845,25.0,1327.3,1327.2,6.17989]
[1610267570650,25.0,1327.3,1327.2,36.17989]
[1610267571853,25.0,1327.3,1327.2,6.17989]
[1610267572251,25.0,1327.3,1327.2,36.17989]
[1610267577757,25.0,1327.3,1327.2,6.17989]
[1610267580559,25.0,1327.3,1327.2,36.17989]
[1610267581561,25.0,1327.3,1327.2,6.17989]
[1610267587072,25.0,1327.3,1327.2,36.17989]
[1610267587272,26.4964,1327.3,1327.2,36.17989]
[1610267587974,25.0,1327.3,1327.2,36.17989]
[1610267598189,25.0,1327.3,1327.2,32.1703]
[1610267599393,25.0,1327.3,1327.2,2.1703]
[1610267599595,29.00959,1327.3,1327.2,2.1703]
[1610267599793,29.00959,1327.3,1326.9,1.9046]
[1610267601598,25.0,1327.3,1327.1,4.00959]
[1610267602599,25.0,1327.3,1326.9,1.9046]
[1610267603001,25.0,1327.3,1326.0,30.0]
[1610267603598,4.00959,1326.5,1326.3,4.00959]
[1610267603802,4.00959,1326.5,1326.3,34.00959]
[1610267605001,4.00959,1326.5,1326.3,4.00959]
[1610267605204,4.00959,1326.5,1326.3,56.98909]
[1610267608107,4.00959,1326.5,1326.4,30.0]
[1610267608507,4.00959,1326.5,1326.4,31.9293]
[1610267609507,25.0,1327.3,1326.4,31.9293]
[1610267609706,4.00959,1326.8,1326.6,4.00959]
[1610267610407,4.00959,1326.8,1326.4,31.9293]
[1610267611708,4.00959,1326.8,1326.6,4.00959]
[1610267611910,4.00959,1326.8,1326.7,30.0]
[1610267613913,25.0,1327.3,1326.7,30.0]
[1610267614514,25.0,1327.3,1326.8,53.523]
[1610267614713,25.0,1327.3,1326.8,83.523]
[1610267615714,4.00959,1327.1,1327.0,4.00959]
[1610267615914,4.00959,1327.1,1327.0,34.00959]
[1610267617719,4.00959,1327.1,1327.0,30.0]
[1610267618518,4.00959,1327.1,1326.8,53.523]
[1610267619719,4.00959,1326.9,1326.8,53.523]
[1610267619922,4.00959,1326.9,1326.8,83.523]
[1610267621319,4.00959,1326.9,1326.8,53.523]
[1610267623925,4.00959,1326.9,1326.4,1.9293]
[1610267624326,4.00959,1326.9,1326.2,59.3767]
[1610267625827,4.00959,1326.3,1326.2,59.3767]
[1610267627127,25.0,1327.3,1326.2,59.3767]
[1610267627327,25.0,1327.3,1326.2,91.2012]
[1610267627727,25.0,1327.3,1326.5,4.00959]
[1610267628526,25.0,1327.3,1326.5,34.00959]
[1610267629730,25.0,1327.3,1326.7,4.00959]
[1610267630932,25.0,1327.3,1326.7,34.00959]
[1610267631733,25.0,1327.3,1327.0,4.00959]
[1610267633535,25.0,1327.3,1327.0,34.00959]
[1610267633735,25.0,1327.3,1327.2,4.00959]
[1610267633936,25.0,1327.3,1327.0,30.0]
[1610267634535,25.0,1327.3,1326.2,1.8245]
[1610267634736,25.0,1327.3,1326.0,30.0]
[1610267635736,4.00959,1326.9,1326.8,4.00959]
[1610267635936,25.0,1327.3,1326.9,25.99041]
[1610267636938,25.0,1327.3,1326.8,4.00959]
[1610267637839,4.00959,1327.0,1326.8,4.00959]
[1610267638140,4.00959,1327.0,1326.8,30.0]
[1610267638739,4.00959,1327.0,1326.9,46.1412]
[1610267652055,4.00959,1327.0,1326.4,62.5506]
[1610267652256,4.00959,1327.0,1325.7,4.00959]
[1610267652457,6.23389,1327.0,1325.7,4.00959]
[1610267653156,6.23389,1327.0,1325.5,1.9245]
[1610267653855,4.00959,1325.9,1325.8,4.00959]
[1610267657461,4.00959,1325.9,1324.5,25.99041]
[1610267657859,4.00959,1325.7,1325.5,4.00959]
[1610267659660,2.3647,1326.4,1324.5,25.99041]
[1610267659961,2.3647,1326.4,1324.5,27.98871]
[1610267660160,4.00959,1325.6,1325.5,4.00959]
[1610267662570,2.3647,1326.4,1325.5,4.00959]
[1610267662965,2.2243,1327.0,1325.5,4.00959]
[1610267663165,25.0,1327.3,1325.5,4.00959]
[1610267664166,25.0,1327.3,1325.8,4.00959]
[1610267665266,25.0,1327.3,1325.8,30.0]
[1610267666267,25.0,1327.3,1326.5,4.00959]
[1610267668268,4.00959,1326.8,1326.5,4.00959]
[1610267668667,4.00959,1326.8,1326.7,43.8653]
[1610267670270,4.00959,1326.8,1326.7,47.87489]
[1610267670971,4.00959,1326.8,1326.7,43.8653]
[1610267680481,4.00959,1326.8,1326.7,47.87489]
[1610267681085,4.00959,1326.8,1326.7,73.8653]
[1610267681281,4.00959,1326.8,1326.7,75.9054]
[1610267682385,4.00959,1327.0,1326.7,75.9054]
[1610267682583,4.00959,1327.0,1326.7,49.91499]
[1610267684486,4.00959,1326.8,1326.7,49.91499]
[1610267685087,4.00959,1326.8,1326.7,45.9054]
[1610267700503,25.0,1327.3,1326.7,45.9054]
[1610267700903,4.00959,1326.8,1326.7,45.9054]
[1610267703004,4.00959,1326.8,1326.7,43.8653]
[1610267703202,6.03629,1326.8,1326.7,43.8653]
[1610267708508,6.03629,1326.8,1326.2,44.2224]
[1610267708909,4.00959,1326.3,1326.2,44.2224]
[1610267717921,4.00959,1326.3,1326.2,43.4598]
[1610267724827,4.00959,1326.3,1326.2,69.45021]
[1610267727431,4.00959,1326.3,1326.2,25.99041]
[1610267728633,4.00959,1326.3,1326.2,71.73171]
[1610267732837,4.00959,1326.3,1326.2,45.7413]
[1610267735440,4.00959,1326.3,1326.2,71.73171]
[1610267736441,4.00959,1326.3,1326.2,45.7413]
[1610267736642,4.00959,1326.3,1325.7,25.99041]
[1610267736841,4.00959,1326.3,1326.0,62.7136]
[1610267737042,4.00959,1326.1,1326.0,62.7136]
[1610267738543,5.51889,1326.1,1326.0,62.7136]
[1610267739443,4.00959,1326.1,1326.0,62.7136]
[1610267746159,4.00959,1326.1,1325.6,1.8487]
[1610267746359,4.00959,1326.1,1325.4,30.0]
[1610267747060,4.00959,1325.5,1325.4,30.0]
[1610267748759,4.00959,1325.5,1325.4,4.00959]
[1610267749859,4.00959,1325.5,1325.4,30.0]
[1610267751562,4.00959,1325.5,1325.4,4.00959]
[1610267751760,4.00959,1325.5,1325.4,25.99041]
[1610267752762,4.00959,1325.5,1325.3,2.4135]
[1610267752963,4.00959,1325.5,1324.1,25.99041]
[1610267753163,4.00959,1324.9,1324.8,4.00959]
[1610267753565,4.00959,1324.9,1324.8,30.0]
[1610267755370,1.5452,1326.2,1324.8,30.0]
[1610267755569,1.5452,1326.2,1325.4,56.6916]
[1610267757272,4.00959,1325.5,1325.4,60.70119]
[1610267757876,4.00959,1325.5,1325.4,86.6916]
[1610267758674,4.00959,1325.5,1325.4,30.0]
[1610267758873,4.00959,1325.5,1325.1,1.8227]
[1610267759276,4.00959,1325.2,1325.1,1.8227]
[1610267760376,4.00959,1325.2,1324.8,28.29761]
[1610267761176,4.00959,1325.0,1324.9,4.00959]
[1610267763484,4.00959,1325.0,1324.8,2.3072]
[1610267763686,4.00959,1325.0,1324.1,25.99041]
[1610267764284,4.00959,1325.0,1324.2,25.99041]
[1610267764686,4.00959,1325.0,1324.2,28.01741]
[1610267765187,2.1414,1325.6,1324.5,4.00959]
[1610267765588,2.1414,1325.6,1324.2,2.027]
[1610267765791,2.1414,1325.6,1323.7,1.9211]
[1610267767292,2.1414,1325.6,1324.3,4.00959]
[1610267769094,1.7592,1325.9,1324.3,4.00959]
[1610267769296,4.00959,1324.4,1324.3,4.00959]
[1610267770500,4.00959,1324.4,1324.3,30.0]
[1610267771502,4.00959,1324.4,1324.3,4.00959]
[1610267773008,2.3403,1324.8,1324.3,30.0]
[1610267773408,4.00959,1324.6,1324.5,4.00959]
[1610267773609,2.3403,1324.8,1324.5,4.00959]
[1610267774411,1.5452,1326.2,1324.5,30.0]
[1610267774684,2.2069,1326.5,1324.5,30.0]
[1610267774810,11.6666,1327.1,1324.5,30.0]
[1610267775010,11.6666,1327.1,1324.5,32.4904]
[1610267775477,11.6666,1327.1,1324.9,4.00959]
[1610267775914,11.6666,1327.1,1324.9,30.0]
[1610267776312,5.9159,1327.1,1324.9,30.0]
[1610267777413,5.9159,1327.1,1325.2,21.98082]
[1610267777615,1.8983,1326.0,1325.2,21.98082]
[1610267778717,1.8983,1326.0,1325.1,4.00959]
[1610267779316,4.00959,1325.2,1325.1,4.00959]
[1610267780020,4.00959,1325.2,1324.8,2.2996]
[1610267781221,4.00959,1325.2,1324.6,21.98082]
[1610267781420,4.00959,1324.9,1324.7,4.00959]
[1610267781623,4.00959,1324.9,1324.7,25.99041]
[1610267784427,4.00959,1324.9,1324.7,4.00959]
[1610267784628,4.00959,1324.9,1324.5,24.47122]
[1610267785328,4.00959,1324.6,1324.5,2.4904]
[1610267785728,4.00959,1324.6,1324.4,4.00959]
[1610267786528,4.00959,1324.6,1324.4,25.99041]
[1610267788530,4.00959,1324.6,1324.4,4.00959]
[1610267798147,2.2567,1325.1,1324.4,4.00959]
[1610267798352,2.4396,1325.4,1324.4,25.99041]
[1610267798648,2.2441,1325.7,1324.4,25.99041]
[1610267799048,1.8983,1326.0,1324.4,25.99041]
[1610267799249,5.9159,1327.1,1324.4,25.99041]
[1610267799549,5.9159,1327.1,1324.6,4.00959]
[1610267800451,35.9159,1327.1,1324.6,4.00959]
[1610267801453,4.00959,1324.7,1324.4,4.00959]
[1610267803553,4.00959,1324.5,1324.4,4.00959]
[1610267806558,4.00959,1324.5,1324.2,2.0814]
[1610267807158,4.00959,1324.5,1323.7,1.9211]
[1610267807560,4.00959,1324.3,1324.2,4.00959]
[1610267807958,4.00959,1324.3,1324.2,25.99041]
[1610267809460,2.223,1325.4,1324.2,25.99041]
[1610267809760,4.00959,1324.5,1324.2,25.99041]
[1610267809961,4.00959,1324.5,1324.2,28.47741]
[1610267811462,4.00959,1324.5,1324.2,6.49659]
[1610267811661,4.00959,1324.3,1324.2,6.49659]
[1610267812064,4.00959,1324.3,1324.2,4.00959]
[1610267814967,4.00959,1324.3,1323.7,1.9211]
[1610267815166,4.00959,1324.3,1322.1,21.98082]
[1610267815567,1.5166,1324.4,1323.7,4.00959]
[1610267816166,1.5166,1324.4,1323.4,2.5145]
[1610267817370,1.5166,1324.4,1322.1,21.98082]
[1610267817572,4.00959,1323.0,1322.9,4.00959]
[1610267822380,43.9584,1323.6,1322.9,25.99041]
[1610267822980,43.9584,1323.6,1322.9,28.34301]
[1610267823482,43.9584,1323.6,1322.9,6.36219]
[1610267825385,43.9584,1323.6,1322.9,28.34301]
[1610267825686,43.9584,1323.6,1323.1,4.00959]
[1610267827588,4.00959,1323.2,1323.1,4.00959]
[1610267830990,4.00959,1323.2,1323.1,10.74589]
[1610267831391,1.5369,1323.9,1323.1,10.74589]
[1610267831592,53.2896,1324.3,1323.1,10.74589]
[1610267831790,4.00959,1323.5,1323.3,4.00959]
[1610267835696,4.00959,1323.5,1323.3,25.99041]
[1610267836497,53.2896,1324.3,1323.3,25.99041]
[1610267836698,53.2896,1324.3,1323.3,27.62931]
[1610267837698,53.2896,1324.3,1324.1,4.00959]
[1610267837900,53.2896,1324.3,1323.6,1.6952]
[1610267839799,4.00959,1323.8,1323.7,4.00959]
[1610267841198,1.5166,1324.4,1323.7,4.00959]
[1610267841399,2.4205,1325.0,1323.7,25.99041]
[1610267841799,4.00959,1324.2,1324.1,4.00959]
[1610267842400,4.00959,1324.2,1323.6,60.6957]
[1610267843701,4.00959,1323.9,1323.7,4.00959]
[1610267844000,4.00959,1323.9,1323.6,60.6957]
[1610267846705,4.00959,1323.9,1323.6,82.67652]
[1610267847705,4.00959,1323.7,1323.6,60.6957]
[1610267848704,4.00959,1323.7,1323.6,1.6952]
[1610267848905,4.00959,1323.7,1323.5,4.00959]
[1610267849705,4.00959,1323.7,1323.5,55.15649]
[1610267851208,4.00959,1323.7,1323.5,77.13731]
[1610267852409,1.6294,1324.7,1323.5,77.13731]
[1610267853213,62.574,1324.8,1323.5,77.13731]
[1610267853715,4.00959,1323.9,1323.7,4.00959]
[1610267853914,4.00959,1323.9,1323.7,25.99041]
[1610267859121,4.00959,1323.9,1323.8,75.92002]
[1610267859521,4.00959,1323.9,1323.8,77.51922]
[1610267863223,1.8616,1324.7,1323.8,77.51922]
[1610267863823,2.4205,1325.0,1324.1,4.00959]
[1610267864224,47.9599,1325.2,1324.1,4.00959]
[1610267865625,50.053,1325.2,1323.8,55.5384]
[1610267865825,4.00959,1324.0,1323.9,4.00959]
[1610267866025,4.00959,1324.0,1323.8,55.5384]
[1610267868526,4.00959,1324.0,1323.8,1.5992]
[1610267868926,4.00959,1324.0,1323.7,21.98082]
[1610267869728,4.00959,1323.8,1323.7,21.98082]
[1610267871828,4.00959,1323.8,1323.7,25.99041]
[1610267872131,1.8735,1324.6,1323.7,25.99041]
[1610267872331,63.7525,1324.9,1323.7,28.05141]
[1610267873736,63.7525,1324.9,1323.9,4.00959]
[1610267873934,63.7525,1324.9,1323.7,24.04182]
[1610267875836,4.00959,1323.8,1323.7,28.05141]
[1610267881846,4.00959,1323.8,1323.7,24.04182]
[1610267883047,2.1824,1324.5,1323.7,24.04182]
[1610267883348,61.8846,1324.8,1323.7,24.04182]
[1610267883847,61.8846,1324.8,1324.0,4.00959]
[1610267884048,61.8846,1324.8,1324.0,25.99041]
[1610267885148,61.8846,1324.8,1324.0,4.00959]
[1610267885649,61.8846,1324.8,1323.8,21.98082]
[1610267885949,4.00959,1323.9,1323.8,25.99041]
[1610267887250,4.00959,1323.9,1323.8,32.72521]
[1610267895161,4.00959,1323.9,1323.8,28.71562]
[1610267896666,4.00959,1323.9,1323.8,21.98082]
[1610267898164,4.00959,1323.9,1323.7,76.34382]
[1610267899765,4.00959,1323.9,1323.7,54.363]
[1610267900366,4.00959,1323.9,1323.7,76.34382]
[1610267903868,4.00959,1323.9,1323.7,54.363]
[1610267906174,4.00959,1323.9,1323.7,2.061]
[1610267906572,4.00959,1323.9,1323.4,25.99041]
[1610267907775,4.00959,1323.7,1323.4,25.99041]
[1610267908676,4.00959,1323.7,1323.6,63.1914]
[1610267908877,4.00959,1323.7,1323.6,87.07382]
[1610267909780,4.00959,1323.7,1323.6,91.08341]
[1610267915493,4.00959,1323.7,1323.6,27.89201]
[1610267921201,1.9829,1324.6,1323.6,27.89201]
[1610267921402,43.7374,1324.7,1323.6,27.89201]
[1610267921902,43.7374,1324.7,1323.9,21.98082]
[1610267923906,4.00959,1324.0,1323.9,21.98082]
[1610267945333,1.9989,1324.6,1323.9,21.98082]
[1610267945533,1.5514,1324.9,1323.9,23.79272]
[1610267945733,44.8026,1325.0,1323.9,23.79272]
[1610267945933,44.8026,1325.0,1324.6,21.98082]
[1610267946933,44.8026,1325.0,1324.4,2.0252]
[1610267947133,44.8026,1325.0,1324.5,21.98082]
[1610267948033,4.00959,1324.6,1324.5,21.98082]
[1610267948233,4.00959,1324.6,1324.2,21.98082]
[1610267950035,4.00959,1324.3,1324.2,21.98082]
[1610267951937,4.00959,1324.3,1323.9,23.79272]
[1610267952142,4.00959,1324.0,1323.9,23.79272]
[1610267954150,4.00959,1324.0,1323.9,27.80231]
[1610267963065,2.33,1325.1,1323.9,27.80231]
[1610267963264,52.6578,1325.3,1323.9,27.80231]
[1610267964165,4.00959,1324.4,1324.3,4.00959]
[1610267964366,52.6578,1325.3,1324.4,17.97123]
[1610267964566,54.4769,1325.3,1324.4,17.97123]
[1610267966167,4.00959,1324.6,1324.5,21.98082]
[1610267971173,4.00959,1324.6,1324.5,4.00959]
[1610267972171,4.00959,1324.6,1324.5,21.98082]
[1610267976576,1.8191,1325.3,1324.6,17.97123]
[1610267976777,5.7025,1327.1,1324.6,17.97123]
[1610267977179,4.00959,1324.7,1324.6,21.98082]
[1610267977678,4.00959,1324.7,1324.6,4.00959]
[1610267988490,4.00959,1324.7,1324.6,21.98082]
[1610267991590,4.00959,1324.7,1324.6,4.00959]
[1610267993695,4.00959,1324.7,1324.6,21.98082]